[Event "Titled Tuesday Blitz March 28 Late 2023"]
[White "Lamard, Guillaume"]
[Black "Feng, Eric"]
[WhiteFideId "600261"]
[BlackFideId "30952590"]
[WhiteElo "2413"]
[BlackElo "1785"]
[Result "0-1"]
[Round "11"]
[TimeControl "180+2"]
[Date "2023.03.28"]
[WhiteClock "0:00:09"]
[BlackClock "0:01:08"]

1. d4 {[%clk 0:03:00]}  Nf6 {[%clk 0:02:55]} 2. Bf4 {[%clk 0:03:00]}  e6 {[%clk 0:02:54]} 3. Nf3 {[%clk 0:03:00]}  d5 {[%clk 0:02:55]} 4. e3 {[%clk 0:03:00]}  c5 {[%clk 0:02:55]} 5. Nbd2 {[%clk 0:02:57]}  Nc6 {[%clk 0:02:55]} 6. c3 {[%clk 0:02:55]}  Bd6 {[%clk 0:02:55]} 7. Bb5 {[%clk 0:02:49]}  Bxf4 {[%clk 0:02:53]} 8. exf4 {[%clk 0:02:49]}  cxd4 {[%clk 0:02:53]} 9. Nxd4 {[%clk 0:02:44]}  Bd7 {[%clk 0:02:53]} 10. Bxc6 {[%clk 0:02:26]}  bxc6 {[%clk 0:02:53]} 11. b4 {[%clk 0:02:26]}  Qc7 {[%clk 0:02:51]} 12. Qf3 {[%clk 0:02:19]}  c5 {[%clk 0:02:51]} 13. bxc5 {[%clk 0:02:15]}  Qxc5 {[%clk 0:02:52]} 14. O-O {[%clk 0:02:15]}  O-O {[%clk 0:02:52]} 15. Rfc1 {[%clk 0:02:09]}  Rfc8 {[%clk 0:02:49]} 16. N4b3 {[%clk 0:02:00]}  Qd6 {[%clk 0:02:45]} 17. c4 {[%clk 0:01:50]}  Bc6 {[%clk 0:02:43]} 18. c5 {[%clk 0:01:50]}  Qc7 {[%clk 0:02:41]} 19. Nd4 {[%clk 0:01:48]}  Rab8 {[%clk 0:02:40]} 20. N2b3 {[%clk 0:01:48]}  Bb5 {[%clk 0:02:40]} 21. Qe3 {[%clk 0:01:22]}  Bc4 {[%clk 0:02:35]} 22. c6 {[%clk 0:01:22]}  Rb6 {[%clk 0:02:24]} 23. h3 {[%clk 0:01:13]}  Ne4 {[%clk 0:02:21]} 24. Nd2 {[%clk 0:01:09]}  Nd6 {[%clk 0:02:11]} 25. Rab1 {[%clk 0:01:04]}  Bb5 {[%clk 0:02:06]} 26. N2f3 {[%clk 0:00:55]}  Bxc6 {[%clk 0:01:55]} 27. Rxb6 {[%clk 0:00:51]}  Qxb6 {[%clk 0:01:56]} 28. Qe5 {[%clk 0:00:51]}  Nc4 {[%clk 0:01:46]} 29. Qh5 {[%clk 0:00:44]}  Be8 {[%clk 0:01:45]} 30. Re1 {[%clk 0:00:36]}  Qc7 {[%clk 0:01:38]} 31. Qh4 {[%clk 0:00:35]}  Qd8 {[%clk 0:01:37]} 32. Qg4 {[%clk 0:00:33]}  Qf6 {[%clk 0:01:36]} 33. Ne5 {[%clk 0:00:31]}  Nd6 {[%clk 0:01:28]} 34. Qf3 {[%clk 0:00:25]}  Bb5 {[%clk 0:01:21]} 35. Rb1 {[%clk 0:00:23]}  Bc4 {[%clk 0:01:21]} 36. Qa3 {[%clk 0:00:21]}  Ne4 {[%clk 0:01:12]} 37. g3 {[%clk 0:00:17]}  a6 {[%clk 0:01:09]} 38. Qb4 {[%clk 0:00:12]}  g5 {[%clk 0:01:09]} 39. Qb7 {[%clk 0:00:11]}  Rf8 {[%clk 0:01:07]} 40. Nd7 {[%clk 0:00:10]}  Qxd4 {[%clk 0:01:07]} 41. Nxf8 {[%clk 0:00:09]}  Qxf2+ {[%clk 0:01:07]} 42. Kh1 {[%clk 0:00:09]}  Nxg3# {[%clk 0:01:08]} 0-1


[Site "https://www.chess.com"]

[Event "Titled Tuesday Blitz March 28 Late 2023"]
[White "Papasimakopoulos, Alexandros"]
[Black "Mekhane, Adam"]
[WhiteFideId "4244125"]
[BlackFideId "36050601"]
[WhiteElo "2359"]
[BlackElo "2177"]
[Result "1-0"]
[Round "11"]
[TimeControl "180+2"]
[Date "2023.03.28"]
[WhiteClock "0:00:51"]
[BlackClock "0:00:01"]

1. d4 {[%clk 0:02:32]}  Nf6 {[%clk 0:02:59]} 2. c4 {[%clk 0:02:32]}  g6 {[%clk 0:02:59]} 3. Nc3 {[%clk 0:02:29]}  Bg7 {[%clk 0:02:59]} 4. Bg5 {[%clk 0:02:24]}  O-O {[%clk 0:02:57]} 5. e3 {[%clk 0:02:24]}  c5 {[%clk 0:02:57]} 6. d5 {[%clk 0:02:24]}  d6 {[%clk 0:02:54]} 7. Bd3 {[%clk 0:02:23]}  h6 {[%clk 0:02:53]} 8. Bh4 {[%clk 0:02:21]}  a6 {[%clk 0:02:44]} 9. a4 {[%clk 0:02:20]}  Nbd7 {[%clk 0:02:24]} 10. f4 {[%clk 0:02:17]}  e6 {[%clk 0:02:23]} 11. dxe6 {[%clk 0:02:17]}  fxe6 {[%clk 0:02:23]} 12. Bxg6 {[%clk 0:02:16]}  Nb6 {[%clk 0:01:53]} 13. b3 {[%clk 0:01:49]}  d5 {[%clk 0:01:49]} 14. a5 {[%clk 0:01:47]}  Nbd7 {[%clk 0:00:27]} 15. cxd5 {[%clk 0:01:40]}  e5 {[%clk 0:00:17]} 16. f5 {[%clk 0:01:35]}  e4 {[%clk 0:00:12]} 17. Nge2 {[%clk 0:01:35]}  Qe7 {[%clk 0:00:10]} 18. O-O {[%clk 0:01:33]}  Ne5 {[%clk 0:00:10]} 19. Nf4 {[%clk 0:01:34]}  Neg4 {[%clk 0:00:07]} 20. Qxg4 {[%clk 0:01:31]}  Nxg4 {[%clk 0:00:06]} 21. Bxe7 {[%clk 0:01:32]}  Bxc3 {[%clk 0:00:05]} 22. Bxf8 {[%clk 0:01:29]}  Bxa1 {[%clk 0:00:05]} 23. Bxc5 {[%clk 0:01:29]}  Be5 {[%clk 0:00:04]} 24. h3 {[%clk 0:01:13]}  Nf6 {[%clk 0:00:04]} 25. Rd1 {[%clk 0:01:11]}  Bxf4 {[%clk 0:00:04]} 26. exf4 {[%clk 0:01:11]}  Bd7 {[%clk 0:00:04]} 27. b4 {[%clk 0:01:07]}  Re8 {[%clk 0:00:03]} 28. Kf2 {[%clk 0:01:06]}  Bb5 {[%clk 0:00:03]} 29. Ke3 {[%clk 0:01:06]}  Bc4 {[%clk 0:00:03]} 30. d6 {[%clk 0:01:03]}  Nd5+ {[%clk 0:00:03]} 31. Rxd5 {[%clk 0:00:55]}  Bxd5 {[%clk 0:00:03]} 32. d7 {[%clk 0:00:55]}  Rd8 {[%clk 0:00:03]} 33. Be8 {[%clk 0:00:56]}  Bc6 {[%clk 0:00:02]} 34. Bb6 {[%clk 0:00:55]}  Rxd7 {[%clk 0:00:03]} 35. Bxd7 {[%clk 0:00:55]}  Bxd7 {[%clk 0:00:04]} 36. g4 {[%clk 0:00:55]}  Bc6 {[%clk 0:00:03]} 37. h4 {[%clk 0:00:54]}  Kf7 {[%clk 0:00:04]} 38. g5 {[%clk 0:00:54]}  hxg5 {[%clk 0:00:04]} 39. fxg5 {[%clk 0:00:54]}  Bd5 {[%clk 0:00:02]} 40. Kf4 {[%clk 0:00:55]}  Bc6 {[%clk 0:00:03]} 41. g6+ {[%clk 0:00:53]}  Kf6 {[%clk 0:00:03]} 42. Bd4+ {[%clk 0:00:52]}  Ke7 {[%clk 0:00:03]} 43. h5 {[%clk 0:00:51]}  Be8 {[%clk 0:00:01]} 44. h6 {[%clk 0:00:51]} 1-0


[Site "https://www.chess.com"]

[Event "Titled Tuesday Blitz March 28 Late 2023"]
[White "Vachier-Lagrave, Maxime"]
[Black "Kavutskiy, Konstantin"]
[WhiteFideId "623539"]
[BlackFideId "2026384"]
[WhiteElo "2740"]
[BlackElo "2369"]
[Result "1-0"]
[Round "11"]
[TimeControl "180+2"]
[Date "2023.03.28"]
[WhiteClock "0:01:27"]
[BlackClock "0:00:04"]

1. e4 {[%clk 0:03:00]}  c5 {[%clk 0:02:59]} 2. Nf3 {[%clk 0:03:00]}  Nc6 {[%clk 0:03:00]} 3. Bb5 {[%clk 0:03:00]}  g6 {[%clk 0:03:00]} 4. O-O {[%clk 0:02:59]}  Bg7 {[%clk 0:03:00]} 5. c3 {[%clk 0:02:59]}  Nf6 {[%clk 0:02:59]} 6. Qa4 {[%clk 0:03:00]}  Qc7 {[%clk 0:02:41]} 7. d4 {[%clk 0:02:58]}  O-O {[%clk 0:02:31]} 8. dxc5 {[%clk 0:02:52]}  Ne5 {[%clk 0:02:22]} 9. Nxe5 {[%clk 0:02:38]}  Qxe5 {[%clk 0:02:23]} 10. Nd2 {[%clk 0:02:37]}  Qxc5 {[%clk 0:02:22]} 11. Bd3 {[%clk 0:02:36]}  d6 {[%clk 0:02:19]} 12. h3 {[%clk 0:02:33]}  Bd7 {[%clk 0:02:15]} 13. Qd1 {[%clk 0:02:34]}  Bc6 {[%clk 0:02:11]} 14. Nb3 {[%clk 0:02:34]}  Qh5 {[%clk 0:02:09]} 15. Qxh5 {[%clk 0:02:33]}  Nxh5 {[%clk 0:02:09]} 16. Na5 {[%clk 0:02:32]}  Nf6 {[%clk 0:02:07]} 17. Nxc6 {[%clk 0:02:30]}  bxc6 {[%clk 0:02:08]} 18. Be3 {[%clk 0:02:27]}  Nd7 {[%clk 0:02:05]} 19. Rfd1 {[%clk 0:02:27]}  Rfb8 {[%clk 0:02:03]} 20. Rd2 {[%clk 0:02:26]}  Kf8 {[%clk 0:01:57]} 21. Rad1 {[%clk 0:02:26]}  a5 {[%clk 0:01:54]} 22. f4 {[%clk 0:02:23]}  a4 {[%clk 0:01:53]} 23. a3 {[%clk 0:02:23]}  Bh6 {[%clk 0:01:42]} 24. g4 {[%clk 0:02:20]}  f6 {[%clk 0:01:32]} 25. h4 {[%clk 0:02:18]}  Rb7 {[%clk 0:01:27]} 26. g5 {[%clk 0:02:18]}  Bg7 {[%clk 0:01:26]} 27. Rf2 {[%clk 0:02:10]}  Rab8 {[%clk 0:01:24]} 28. Rdd2 {[%clk 0:02:11]}  Ke8 {[%clk 0:01:21]} 29. Ba6 {[%clk 0:02:11]}  Rc7 {[%clk 0:01:17]} 30. Bc4 {[%clk 0:02:10]}  Rcb7 {[%clk 0:01:05]} 31. Kg2 {[%clk 0:02:03]}  Nf8 {[%clk 0:01:04]} 32. Kg3 {[%clk 0:02:03]}  Kd7 {[%clk 0:00:57]} 33. Be2 {[%clk 0:01:47]}  Kc7 {[%clk 0:00:56]} 34. Bd1 {[%clk 0:01:46]}  Ra8 {[%clk 0:00:54]} 35. Bg4 {[%clk 0:01:44]}  Rab8 {[%clk 0:00:52]} 36. Bd1 {[%clk 0:01:44]}  Ra8 {[%clk 0:00:52]} 37. Rd4 {[%clk 0:01:45]}  fxg5 {[%clk 0:00:47]} 38. Rxa4 {[%clk 0:01:44]}  gxh4+ {[%clk 0:00:46]} 39. Kxh4 {[%clk 0:01:43]}  Rxa4 {[%clk 0:00:46]} 40. Bxa4 {[%clk 0:01:44]}  Ne6 {[%clk 0:00:45]} 41. Bd1 {[%clk 0:01:41]}  Bf6+ {[%clk 0:00:43]} 42. Kg3 {[%clk 0:01:40]}  h5 {[%clk 0:00:41]} 43. Rg2 {[%clk 0:01:33]}  Rb8 {[%clk 0:00:40]} 44. Kh3 {[%clk 0:01:28]}  c5 {[%clk 0:00:24]} 45. a4 {[%clk 0:01:28]}  Rg8 {[%clk 0:00:16]} 46. Bb3 {[%clk 0:01:27]}  Kd7 {[%clk 0:00:15]} 47. f5 {[%clk 0:01:27]}  Ng5+ {[%clk 0:00:04]} 48. Bxg5 {[%clk 0:01:27]}  Rb8 {[%clk 0:00:04]} 49. Be6+ {[%clk 0:01:27]} 1-0


[Site "https://www.chess.com"]

[Event "Titled Tuesday Blitz March 28 Late 2023"]
[White "Sochacki, Christophe"]
[Black "Ibarra Jerez, Jose Carlos"]
[WhiteFideId "662569"]
[BlackFideId "2226332"]
[WhiteElo "2474"]
[BlackElo "2638"]
[Result "0-1"]
[Round "11"]
[TimeControl "180+2"]
[Date "2023.03.28"]
[WhiteClock "0:00:02"]
[BlackClock "0:00:22"]

1. e4 {[%clk 0:03:00]}  c5 {[%clk 0:02:59]} 2. Nf3 {[%clk 0:03:00]}  e6 {[%clk 0:03:00]} 3. d4 {[%clk 0:02:59]}  cxd4 {[%clk 0:03:01]} 4. Nxd4 {[%clk 0:02:59]}  Bc5 {[%clk 0:03:01]} 5. Nb3 {[%clk 0:02:58]}  Bb6 {[%clk 0:03:01]} 6. c4 {[%clk 0:02:43]}  Ne7 {[%clk 0:03:01]} 7. Nc3 {[%clk 0:02:41]}  O-O {[%clk 0:03:00]} 8. c5 {[%clk 0:02:15]}  Bc7 {[%clk 0:03:00]} 9. Be2 {[%clk 0:02:08]}  f5 {[%clk 0:02:58]} 10. O-O {[%clk 0:01:55]}  f4 {[%clk 0:02:58]} 11. Nb5 {[%clk 0:01:52]}  Be5 {[%clk 0:02:58]} 12. Nd6 {[%clk 0:01:50]}  Nbc6 {[%clk 0:02:57]} 13. Nd2 {[%clk 0:01:37]}  b6 {[%clk 0:02:52]} 14. N2c4 {[%clk 0:01:29]}  bxc5 {[%clk 0:02:41]} 15. Nxe5 {[%clk 0:01:24]}  Nxe5 {[%clk 0:02:41]} 16. Bd2 {[%clk 0:01:22]}  N7c6 {[%clk 0:02:28]} 17. Rc1 {[%clk 0:01:20]}  Qe7 {[%clk 0:02:22]} 18. Bc3 {[%clk 0:01:19]}  f3 {[%clk 0:01:58]} 19. gxf3 {[%clk 0:01:15]}  a5 {[%clk 0:01:40]} 20. Bxe5 {[%clk 0:01:01]}  Nxe5 {[%clk 0:01:40]} 21. Rxc5 {[%clk 0:01:02]}  Ng6 {[%clk 0:01:31]} 22. Re1 {[%clk 0:00:58]}  Ba6 {[%clk 0:01:30]} 23. e5 {[%clk 0:00:21]}  Nf4 {[%clk 0:01:29]} 24. Ne4 {[%clk 0:00:11]}  Bxe2 {[%clk 0:01:07]} 25. Rxe2 {[%clk 0:00:12]}  Qh4 {[%clk 0:01:07]} 26. Rd2 {[%clk 0:00:06]}  Rf5 {[%clk 0:00:51]} 27. Rdc2 {[%clk 0:00:04]}  h6 {[%clk 0:00:39]} 28. Rc8+ {[%clk 0:00:03]}  Rxc8 {[%clk 0:00:40]} 29. Rxc8+ {[%clk 0:00:03]}  Kh7 {[%clk 0:00:40]} 30. Qxd7 {[%clk 0:00:02]}  Qh3 {[%clk 0:00:22]} 0-1


[Site "https://www.chess.com"]

[Event "Titled Tuesday Blitz March 28 Late 2023"]
[White "Pakleza, Zbigniew"]
[Black "Freitag, Manfred"]
[WhiteFideId "1119290"]
[BlackFideId "1602004"]
[WhiteElo "2410"]
[BlackElo "2275"]
[Result "1-0"]
[Round "11"]
[TimeControl "180+2"]
[Date "2023.03.28"]
[WhiteClock "0:00:08"]
[BlackClock "0:00:46"]

1. Nf3 {[%clk 0:03:00]}  d5 {[%clk 0:02:59]} 2. c4 {[%clk 0:03:01]}  e6 {[%clk 0:02:59]} 3. g3 {[%clk 0:03:01]}  Nf6 {[%clk 0:02:59]} 4. Bg2 {[%clk 0:03:01]}  Be7 {[%clk 0:03:00]} 5. O-O {[%clk 0:03:01]}  O-O {[%clk 0:03:00]} 6. b3 {[%clk 0:03:00]}  c6 {[%clk 0:03:01]} 7. Bb2 {[%clk 0:03:01]}  Nbd7 {[%clk 0:03:01]} 8. d4 {[%clk 0:02:57]}  b6 {[%clk 0:03:02]} 9. Nbd2 {[%clk 0:02:57]}  Bb7 {[%clk 0:03:01]} 10. Qc2 {[%clk 0:02:40]}  c5 {[%clk 0:03:01]} 11. Rad1 {[%clk 0:02:30]}  Rc8 {[%clk 0:03:01]} 12. Qb1 {[%clk 0:02:30]}  Qc7 {[%clk 0:02:58]} 13. cxd5 {[%clk 0:02:14]}  exd5 {[%clk 0:02:57]} 14. dxc5 {[%clk 0:02:09]}  bxc5 {[%clk 0:02:57]} 15. Nh4 {[%clk 0:02:01]}  Rfe8 {[%clk 0:02:54]} 16. Nf5 {[%clk 0:01:59]}  Bf8 {[%clk 0:02:55]} 17. Rfe1 {[%clk 0:01:59]}  g6 {[%clk 0:02:54]} 18. Nh4 {[%clk 0:01:50]}  Bg7 {[%clk 0:02:53]} 19. Rc1 {[%clk 0:01:36]}  Qb6 {[%clk 0:02:51]} 20. h3 {[%clk 0:01:34]}  Ba6 {[%clk 0:02:48]} 21. e4 {[%clk 0:01:27]}  d4 {[%clk 0:02:45]} 22. f4 {[%clk 0:01:20]}  Qa5 {[%clk 0:02:33]} 23. Nc4 {[%clk 0:01:17]}  Bxc4 {[%clk 0:02:34]} 24. Rxc4 {[%clk 0:01:14]}  Nb6 {[%clk 0:02:34]} 25. Rcc1 {[%clk 0:01:11]}  Nh5 {[%clk 0:02:31]} 26. Kh2 {[%clk 0:01:11]}  c4 {[%clk 0:02:29]} 27. bxc4 {[%clk 0:01:09]}  Nxc4 {[%clk 0:02:29]} 28. e5 {[%clk 0:00:58]}  d3 {[%clk 0:02:22]} 29. Bc3 {[%clk 0:00:55]}  Qd8 {[%clk 0:02:11]} 30. Rcd1 {[%clk 0:00:55]}  d2 {[%clk 0:02:00]} 31. Re4 {[%clk 0:00:49]}  f5 {[%clk 0:01:42]} 32. Rd4 {[%clk 0:00:46]}  Qb6 {[%clk 0:01:38]} 33. Bd5+ {[%clk 0:00:36]}  Kh8 {[%clk 0:01:38]} 34. Bxc4 {[%clk 0:00:19]}  Qc6 {[%clk 0:01:14]} 35. Qd3 {[%clk 0:00:19]}  g5 {[%clk 0:01:06]} 36. Nxf5 {[%clk 0:00:18]}  gxf4 {[%clk 0:01:06]} 37. gxf4 {[%clk 0:00:19]}  Rxe5 {[%clk 0:00:55]} 38. Rd8+ {[%clk 0:00:15]}  Re8 {[%clk 0:00:53]} 39. Rxe8+ {[%clk 0:00:12]}  Rxe8 {[%clk 0:00:54]} 40. Nxg7 {[%clk 0:00:10]}  Nxg7 {[%clk 0:00:54]} 41. Bxg7+ {[%clk 0:00:08]}  Kxg7 {[%clk 0:00:54]} 42. Qd4+ {[%clk 0:00:09]}  Kh6 {[%clk 0:00:53]} 43. Rxd2 {[%clk 0:00:08]}  Re1 {[%clk 0:00:46]} 44. Qd6+ {[%clk 0:00:08]}  Qxd6 {[%clk 0:00:47]} 45. Rxd6+ {[%clk 0:00:09]}  Kh5 {[%clk 0:00:47]} 46. Bf7+ {[%clk 0:00:07]}  Kh4 {[%clk 0:00:46]} 47. Rh6# {[%clk 0:00:08]} 1-0


[Site "https://www.chess.com"]

[Event "Titled Tuesday Blitz March 28 Late 2023"]
[White "Smirnov, Pavel"]
[Black "Gold_Ocean"]
[WhiteFideId "4123425"]
[WhiteElo "2519"]
[BlackElo "2613"]
[Result "0-1"]
[Round "11"]
[TimeControl "180+2"]
[Date "2023.03.28"]
[WhiteClock "0:02:01"]
[BlackClock "0:01:56"]

1. d4 {[%clk 0:02:54]}  Nf6 {[%clk 0:02:58]} 2. c4 {[%clk 0:02:53]}  g6 {[%clk 0:02:55]} 3. g3 {[%clk 0:02:54]}  Bg7 {[%clk 0:02:54]} 4. Nf3 {[%clk 0:02:55]}  O-O {[%clk 0:02:55]} 5. Bg2 {[%clk 0:02:56]}  d6 {[%clk 0:02:55]} 6. O-O {[%clk 0:02:57]}  c5 {[%clk 0:02:53]} 7. Nc3 {[%clk 0:02:58]}  Nc6 {[%clk 0:02:52]} 8. dxc5 {[%clk 0:02:58]}  dxc5 {[%clk 0:02:52]} 9. Bf4 {[%clk 0:02:59]}  Nh5 {[%clk 0:02:31]} 10. Be3 {[%clk 0:02:43]}  b6 {[%clk 0:02:29]} 11. Qc1 {[%clk 0:02:43]}  Bb7 {[%clk 0:02:27]} 12. Rd1 {[%clk 0:02:44]}  Qc8 {[%clk 0:02:27]} 13. Nd5 {[%clk 0:02:43]}  e6 {[%clk 0:02:26]} 14. Nc3 {[%clk 0:02:43]}  Nf6 {[%clk 0:02:21]} 15. Ng5 {[%clk 0:02:43]}  Ng4 {[%clk 0:02:20]} 16. Bf4 {[%clk 0:02:42]}  Nd4 {[%clk 0:02:13]} 17. e3 {[%clk 0:02:09]}  Nc6 {[%clk 0:02:05]} 18. Nb5 {[%clk 0:02:07]}  e5 {[%clk 0:01:59]} 19. Nd6 {[%clk 0:02:08]}  Qc7 {[%clk 0:01:56]} 20. Nxb7 {[%clk 0:02:07]}  Qxb7 {[%clk 0:01:57]} 21. h3 {[%clk 0:02:06]}  exf4 {[%clk 0:01:56]} 22. hxg4 {[%clk 0:02:04]}  fxg3 {[%clk 0:01:56]} 23. Rd8 {[%clk 0:02:01]} 0-1


[Site "https://www.chess.com"]

[Event "Titled Tuesday Blitz March 28 Late 2023"]
[White "Adewumi, Tanitoluwa"]
[Black "Poliakova, Varvara"]
[WhiteFideId "30966396"]
[BlackFideId "13518313"]
[WhiteElo "2737"]
[BlackElo "2075"]
[Result "0-1"]
[Round "11"]
[TimeControl "180+2"]
[Date "2023.03.28"]
[WhiteClock "0:01:00"]
[BlackClock "0:02:03"]

1. e4 {[%clk 0:02:57]}  e5 {[%clk 0:02:57]} 2. Nc3 {[%clk 0:02:55]}  Nf6 {[%clk 0:02:57]} 3. Bc4 {[%clk 0:02:54]}  Nxe4 {[%clk 0:02:51]} 4. Qh5 {[%clk 0:02:47]}  Nd6 {[%clk 0:02:51]} 5. Bb3 {[%clk 0:02:47]}  Nc6 {[%clk 0:02:49]} 6. Nb5 {[%clk 0:02:46]}  g6 {[%clk 0:02:48]} 7. Qf3 {[%clk 0:02:47]}  f5 {[%clk 0:02:49]} 8. Qd5 {[%clk 0:02:47]}  Qe7 {[%clk 0:02:45]} 9. Nxc7+ {[%clk 0:02:48]}  Kd8 {[%clk 0:02:46]} 10. Nxa8 {[%clk 0:02:48]}  b6 {[%clk 0:02:42]} 11. d3 {[%clk 0:02:48]}  Bb7 {[%clk 0:02:40]} 12. h4 {[%clk 0:02:48]}  h6 {[%clk 0:02:32]} 13. Nxb6 {[%clk 0:02:48]}  axb6 {[%clk 0:02:30]} 14. Qf3 {[%clk 0:02:37]}  Nd4 {[%clk 0:02:28]} 15. Qg3 {[%clk 0:02:36]}  f4 {[%clk 0:02:26]} 16. Qxg6 {[%clk 0:02:36]}  Kc7 {[%clk 0:02:21]} 17. f3 {[%clk 0:02:12]}  Rh7 {[%clk 0:02:18]} 18. Rh2 {[%clk 0:01:43]}  Rg7 {[%clk 0:02:16]} 19. Qh5 {[%clk 0:01:42]}  Ne8 {[%clk 0:02:12]} 20. Ne2 {[%clk 0:01:02]}  Nf6 {[%clk 0:02:10]} 21. Nxd4 {[%clk 0:01:00]}  exd4+ {[%clk 0:02:03]} 0-1


[Site "https://www.chess.com"]

[Event "Titled Tuesday Blitz March 28 Late 2023"]
[White "Herrera Reyes, Jose Antonio"]
[Black "Dobre, Claudiu-Cristian"]
[WhiteFideId "2274914"]
[BlackFideId "1211854"]
[WhiteElo "2273"]
[BlackElo "2207"]
[Result "1-0"]
[Round "11"]
[TimeControl "180+2"]
[Date "2023.03.28"]
[WhiteClock "0:00:17"]
[BlackClock "0:00:03"]

1. Nf3 {[%clk 0:03:00]}  d6 {[%clk 0:02:58]} 2. g3 {[%clk 0:03:01]}  f5 {[%clk 0:02:56]} 3. Bg2 {[%clk 0:03:01]}  e5 {[%clk 0:02:57]} 4. d3 {[%clk 0:03:02]}  Nf6 {[%clk 0:02:53]} 5. Nc3 {[%clk 0:03:02]}  Nc6 {[%clk 0:02:45]} 6. h4 {[%clk 0:03:02]}  Be7 {[%clk 0:02:37]} 7. h5 {[%clk 0:03:02]}  O-O {[%clk 0:02:22]} 8. Bg5 {[%clk 0:03:02]}  Ng4 {[%clk 0:02:01]} 9. Bxe7 {[%clk 0:03:01]}  Nxe7 {[%clk 0:02:01]} 10. Qd2 {[%clk 0:03:00]}  c5 {[%clk 0:01:56]} 11. h6 {[%clk 0:02:56]}  Nxh6 {[%clk 0:01:31]} 12. Rxh6 {[%clk 0:02:56]}  gxh6 {[%clk 0:01:31]} 13. O-O-O {[%clk 0:02:57]}  f4 {[%clk 0:01:30]} 14. Rh1 {[%clk 0:02:56]}  Ng6 {[%clk 0:01:22]} 15. Rxh6 {[%clk 0:02:54]}  Kg7 {[%clk 0:01:21]} 16. Rh1 {[%clk 0:02:53]}  Be6 {[%clk 0:01:02]} 17. Ne4 {[%clk 0:02:52]}  h6 {[%clk 0:00:56]} 18. Bh3 {[%clk 0:02:46]}  Qd7 {[%clk 0:00:53]} 19. Bxe6 {[%clk 0:02:45]}  Qxe6 {[%clk 0:00:54]} 20. Kb1 {[%clk 0:02:44]}  b6 {[%clk 0:00:52]} 21. gxf4 {[%clk 0:02:37]}  Nxf4 {[%clk 0:00:51]} 22. Ng3 {[%clk 0:02:32]}  Rf7 {[%clk 0:00:35]} 23. Nh4 {[%clk 0:02:31]}  Rg8 {[%clk 0:00:32]} 24. e4 {[%clk 0:02:30]}  Kf8 {[%clk 0:00:31]} 25. Nhf5 {[%clk 0:02:29]}  Rg6 {[%clk 0:00:29]} 26. a4 {[%clk 0:02:27]}  a5 {[%clk 0:00:29]} 27. Qc3 {[%clk 0:02:16]}  Rh7 {[%clk 0:00:29]} 28. Nh4 {[%clk 0:01:56]}  Rg5 {[%clk 0:00:28]} 29. Ngf5 {[%clk 0:01:55]}  h5 {[%clk 0:00:28]} 30. Qd2 {[%clk 0:01:55]}  Rg4 {[%clk 0:00:27]} 31. f3 {[%clk 0:01:52]}  Rg8 {[%clk 0:00:26]} 32. d4 {[%clk 0:01:52]}  cxd4 {[%clk 0:00:24]} 33. Nxd4 {[%clk 0:01:52]}  exd4 {[%clk 0:00:21]} 34. Qxf4+ {[%clk 0:01:52]}  Rf7 {[%clk 0:00:18]} 35. Nf5 {[%clk 0:01:52]}  Rh8 {[%clk 0:00:14]} 36. Qd2 {[%clk 0:01:46]}  Qe5 {[%clk 0:00:13]} 37. Qg5 {[%clk 0:01:40]}  Qf6 {[%clk 0:00:13]} 38. Qg3 {[%clk 0:01:31]}  h4 {[%clk 0:00:12]} 39. Nxh4 {[%clk 0:01:26]}  Ke8 {[%clk 0:00:12]} 40. Qg4 {[%clk 0:01:21]}  Kd8 {[%clk 0:00:11]} 41. e5 {[%clk 0:01:12]}  dxe5 {[%clk 0:00:11]} 42. Qe4 {[%clk 0:01:12]}  Kc7 {[%clk 0:00:10]} 43. Qd5 {[%clk 0:00:43]}  Rfh7 {[%clk 0:00:10]} 44. Re1 {[%clk 0:00:31]}  Rxh4 {[%clk 0:00:09]} 45. Rxe5 {[%clk 0:00:31]}  R8h7 {[%clk 0:00:10]} 46. Re6 {[%clk 0:00:30]}  Qd8 {[%clk 0:00:09]} 47. Rc6+ {[%clk 0:00:26]}  Kb7 {[%clk 0:00:10]} 48. Rd6+ {[%clk 0:00:26]}  Ka7 {[%clk 0:00:10]} 49. Rxd8 {[%clk 0:00:26]}  Rb7 {[%clk 0:00:10]} 50. Rd7 {[%clk 0:00:25]}  Rh7 {[%clk 0:00:09]} 51. Rd8 {[%clk 0:00:24]}  Rhf7 {[%clk 0:00:08]} 52. Qe4 {[%clk 0:00:23]}  Rfe7 {[%clk 0:00:08]} 53. Qxd4 {[%clk 0:00:22]}  Rbc7 {[%clk 0:00:06]} 54. f4 {[%clk 0:00:22]}  Rc5 {[%clk 0:00:05]} 55. Rd6 {[%clk 0:00:19]}  Rec7 {[%clk 0:00:04]} 56. c3 {[%clk 0:00:18]}  Rf5 {[%clk 0:00:03]} 57. Qxb6+ {[%clk 0:00:17]} 1-0


[Site "https://www.chess.com"]